Cogmind - Beta 15 @@@ ROGUE MODE // 2025.08.09 @ 22:39:34 Player: shapeshifter Result: Destroyed by G-73 Enforcer with Phase Gun Performance ------------- Evolutions (9) 4500 Regions Visited (21) 4200 Robots Destroyed (232) 1160 Value Destroyed (11595) 11595 Prototype IDs (72) 1440 Alien Tech Used (0) 0 Bonus (15626) 15626 TOTAL SCORE: 38521 Bonus ------- Triggered High Security 500 High Alert Combat Kills 2374 Follower Combat Kills 4879 Entered DSFs 500 Met Imprinter 300 Was Imprinted 300 Met Warlord at Base 500 MAIN.C Attacked Warlord 500 Warlord Defense Kills 6178 Built Enhanced Grunts 300 Met R17 at Cetus 500 Scanned by Researcher 500 Friendly Fire -1705 Cogmind --------- Core Integrity 0/1600 Matter 143/300 Energy 99/100 System Corruption 6% Temperature Cool (0) Movement Core (50) Location -1/Access Parts ------- > --- POWER (2) -------- (None) > --- PROPULSION (8) --- (None) > --- UTILITY (11) ----- Experimental Coolant Injector > --- WEAPON (4) ------- (None) > --- INVENTORY (5) ---- Potential Cannon Advanced Remote Datajack Peak State ------------ > --- POWER ------------ Cooled Antimatter Reactor Light Quantum Reactor > --- PROPULSION ------- Advanced VSS Leg Zionite Composite Leg II High-density Centrium Leg Myomer Exoskeleton > --- UTILITY ---------- Advanced Heat Sink Experimental Coolant Injector High-capacity Storage Unit Experimental Energy Well Machine Analyzer Medium Regenerative Plating Advanced Force Field System Mapper Stealth Drone Bay > --- WEAPON ----------- Enhanced Nova Cannon Potential Cannon Enhanced Force Lance > --- INVENTORY -------- Biometal Medium Treads Myomer Leg Myomer Leg Myomer Leg Biometal Leg EM Shield Advanced Remote Force Field Advanced Variable Charge Gun Quantum Rifle Heavy Disruptor Cannon Potential Cannon Cooled Nova Cannon Hellfire Missile Launcher Vortex Catalyst Activator Advanced Remote Datajack CR-A16's Pointy Stick [Rating: 201] Favorites ----------- Power Reinforced Deuterium Engine Engine Reinforced Deuterium Engine Power Core Light Fission Core Reactor Compact Particle Reactor Propulsion Improved Treads Treads Improved Treads Leg Thunder Leg Wheel Wheel Flight Unit Improved Flight Unit Utility High-capacity Storage Unit Device Experimental Coolant Injector Storage High-capacity Storage Unit Processor Machine Analyzer Hackware Makeshift Hacking Suite Protection Hardened Medium Armor Plating Weapon Flak Cannon Energy Gun Zionite Phaser-H Energy Cannon Cooled Nova Cannon Ballistic Gun Advanced KE Penetrator Ballistic Cannon Flak Cannon Launcher Mini Grenade Launcher Special Weapon RU-N14's Throwing Claymores v3 Impact Weapon Thunder Hammer Piercing Weapon Heavy Pick Special Melee Weapon Datajack Build | -11 -10 -10 -9 -9 -7 -6 -6 -6 -6 -6 -5 -5 -5 -5 -4 -4 -4 -3 -3 -2 -1 ------- Run | Yrd Mat Min Mat Min Zio Pro Fac Ext Cet Arc Fac Upp Upp War Pro Fac DSF Res Tes Res Acc Slots Evolved 18 | . . . 2 . . . 6 . . . 2 . . . . 2 . 2 . 2 2 Power 1 | . . . . . . . 1 . . . . . . . . . . . . . . Propulsion 6 | . . . 2 . . . 1 . . . 1 . . . . . . . . . 2 Utility 9 | . . . . . . . 4 . . . 1 . . . . 2 . 1 . 1 . Weapon 2 | . . . . . . . . . . . . . . . . . . 1 . 1 . Parts Attached 192 | 6 4 1 15 1 1 6 12 13 10 6 4 1 2 12 . 4 4 15 29 36 10 Power 23 | 1 . . 1 . 1 . 1 1 3 . . . . . . . . 2 2 7 4 Engine 4 | 1 . . 1 . 1 . . . 1 . . . . . . . . . . . . Core 2 | . . . . . . . 1 1 . . . . . . . . . . . . . Reactor 17 | . . . . . . . . . 2 . . . . . . . . 2 2 7 4 Propulsion 60 | 2 1 . 6 1 . 2 5 7 2 1 1 . . . . . 4 6 8 11 3 Treads 22 | . 1 . 5 1 . 2 . 7 2 1 1 . . . . . . . 1 1 . Leg 29 | . . . . . . . 5 . . . . . . . . . . 6 6 10 2 Wheel 7 | 2 . . . . . . . . . . . . . . . . 4 . . . 1 Hover . | . . . . . . . . . . . . . . . . . . . . . . Flight 2 | . . . 1 . . . . . . . . . . . . . . . 1 . . Utility 54 | 1 1 1 3 . . . 5 2 2 . 3 1 2 1 . 4 . 4 12 10 2 Device 18 | . . . . . . . . . . . 2 1 2 . . . . 2 8 2 1 Storage 8 | 1 . 1 . . . . . . . . . . . . . 2 . . 2 2 . Processor 10 | . . . . . . . 3 . 1 . . . . . . 2 . 1 1 2 . Hackware 5 | . . . . . . . 2 1 . . . . . . . . . . 1 . 1 Protection 13 | . 1 . 3 . . . . 1 1 . 1 . . 1 . . . 1 . 4 . Artifact . | . . . . . . . . . . . . . . . . . . . . . . Weapon 55 | 2 2 . 5 . . 4 1 3 3 5 . . . 11 . . . 3 7 8 1 Energy Gun 13 | . 1 . 1 . . . 1 . 1 2 . . . 3 . . . 1 . 2 1 Energy Cannon 5 | . . . . . . . . 1 . . . . . . . . . . 2 2 . Ballistic Gun 9 | 2 . . 2 . . . . 1 . 3 . . . . . . . . . 1 . Ballistic Cannon 3 | . . . 2 . . 1 . . . . . . . . . . . . . . . Launcher 6 | . 1 . . . . 1 . . . . . . . 1 . . . . 2 1 . Special Weapon 12 | . . . . . . 1 . . 2 . . . . 6 . . . 1 2 . . Impact Weapon 1 | . . . . . . . . . . . . . . . . . . . . 1 . Slashing Weapon . | . . . . . . . . . . . . . . . . . . . . . . Piercing Weapon 5 | . . . . . . 1 . . . . . . . 1 . . . 1 1 1 . Special Melee Weapon 1 | . . . . . . . . 1 . . . . . . . . . . . . . Unidentified Prototypes 33 | . 1 . 1 . 1 1 . . 3 1 . . . 4 . 2 . . 14 5 . Corrupted Parts 7 | . . . . . . 1 . . . 6 . . . . . . . . . . . System Corruption 43 | . . . . . . 5 . . . 38 . . . . . . . . . . . Parts Lost 89 | . 1 . 3 2 . 3 . 2 1 . . . 1 9 4 . 2 . 7 37 17 Power 16 | . . . 1 . . . . 1 . . . . . 2 1 . . . . 7 4 Propulsion 22 | . . . . 2 . 2 . . 1 . . . . 3 1 . . . . 7 6 Utility 36 | . . . 1 . . . . 1 . . . . 1 2 1 . 2 . 6 18 4 Weapon 15 | . 1 . 1 . . 1 . . . . . . . 2 1 . . . 1 5 3 Highest Loss Streak 17 | . 1 . 1 1 . 2 . 1 1 . . . 1 5 9 . 2 . 6 11 17 To Critical Strikes 4 | . . . . . . . . . . . . . . 1 . . . . . 1 2 Average Backups 15 | 2 7 9 16 18 19 19 17 17 17 17 16 18 17 16 3 4 4 9 16 13 3 Power . | . 1 1 1 3 1 . . . . 1 1 1 1 . . . . . . . . Propulsion 1 | . 2 2 2 2 . . . 1 . 2 1 1 1 . . . . 3 6 4 1 Utility 5 | . 2 3 5 5 8 10 8 9 7 5 5 6 6 4 1 2 2 . 1 1 . Weapon 6 | 1 1 2 5 6 7 8 7 6 7 8 8 9 8 8 2 2 2 5 7 6 1 Tool/Special . | . . . . . . . . . . . . . . . . . . . . . . Unused Backups 52 | . 2 . 5 . 10 1 3 5 7 . . 1 . 6 1 . . . 5 6 . Power 3 | . . . . . 2 . . . . . . . . . . . . . 1 . . Propulsion 7 | . 1 . . . . . . 1 . . . . . . . . . . 3 2 . Utility 24 | . 1 . 2 . 3 . 3 3 7 . . . . 2 . . . . 1 2 . Weapon 17 | . . . 3 . 4 1 . 1 . . . 1 . 4 1 . . . . 2 . Tool/Special 1 | . . . . . 1 . . . . . . . . . . . . . . . . Average Slot Usage (%) 83 | . 90 100 99 95 100 90 72 97 90 83 80 81 82 80 35 26 30 64 91 72 43 Engine 5 | . 14 14 10 11 11 11 6 1 5 6 5 5 5 4 . . . . . . . Core 1 | . . . . . . . . 10 2 . . . . . . . . . . . . Reactor 2 | . . . . . . . . . 4 6 5 5 5 4 . . . 4 9 6 2 Treads 20 | . 11 14 40 39 44 38 8 26 24 16 17 17 17 16 . . . . . . 3 Leg 5 | . . . . . . . 10 5 . . . . . . . . . 17 26 16 12 Device 4 | . . . . . . . . . . . 2 7 11 10 2 . . 1 14 11 8 Storage 7 | . 14 14 11 11 11 11 6 6 6 6 5 5 5 5 4 . . 4 4 8 3 Processor 10 | . . . . . . . 18 20 20 20 17 17 17 17 17 20 21 14 17 7 3 Hackware 2 | . . . . . . . 6 12 7 6 5 3 . . . . . . . . . Protection 6 | . 6 14 10 11 11 11 6 . 4 6 5 5 5 5 . . . 3 3 6 . Energy Gun 1 | . 11 14 1 . . . . . 4 4 . . . 3 2 . . 3 . 3 2 Ballistic Gun 1 | . 10 . 3 . . . . . . 4 5 5 5 . . . . . . . . Ballistic Cannon 5 | . . . 14 22 22 14 . . . . . . . . . . . . . . . Piercing Weapon 3 | . . . . . . 1 6 5 5 1 3 5 5 2 5 5 5 4 4 3 3 Peak Build Rating 201 | 6 10 10 23 22 27 39 55 72 106 106 128 122 126 133 58 36 46 118 190 201 116 Average Rating 77 | 4 8 10 20 20 24 30 46 61 94 102 121 120 125 123 27 24 29 84 148 168 85 On Entrance 60 | . 6 10 10 22 21 27 29 55 69 106 104 120 122 125 55 18 28 46 118 190 58 Naked Turns . | . . . . . . . . . . . . . . . . . . . . . . Heaviest Build 147 | 11 13 48 67 67 68 70 66 67 93 86 92 87 88 98 79 3 3 109 145 147 70 Greatest Support 240 | 26 26 10 89 89 86 106 60 150 190 190 240 240 240 240 80 3 64 138 178 188 118 Greatest Overweight (x) 18 | . 1 4 5 1 . 1 4 1 . . . . . . 18 . . 1 1 1 . Average Overweight (x) . | . . 2 1 . . . . . . . . . . . 3 . . . . . . Largest Inventory Capacity 20 | 8 8 20 20 20 20 20 20 20 20 20 20 20 20 20 20 5 5 20 20 20 15 Average Capacity 19 | 7 8 16 20 20 20 20 20 20 20 20 20 20 20 20 18 5 5 20 20 18 14 Most Carried 20 | 5 8 10 20 19 20 20 20 20 20 20 20 20 20 20 6 5 5 19 20 20 7 Average Carried 16 | 2 7 9 16 18 19 19 19 19 19 19 18 19 19 18 4 5 5 11 19 16 4 Final Capacity 20 | 8 8 20 20 20 20 20 20 20 20 20 20 20 20 20 20 5 5 20 20 20 15 Final Carried 20 | 4 8 10 19 17 20 19 20 19 20 20 20 20 19 20 7 5 5 19 19 19 5 Class Distribution -------------------- 46% | Mutant 36% | Scavenger-Mutant 4% | Derelict-Mutant 3% | Commander-Mutant 3% | Messiah-Tank Dominant Class ---------------- Mutant | -10/Materials Mutant | -10/Mines Mutant | -9/Materials Mutant | -9/Mines Mutant | -7/Zion Mutant | -6/Proximity Caves Derelict-Mutant | -6/Factory Scavenger-Mutant | -6/Extension Scavenger-Mutant | -6/Cetus Scavenger-Mutant | -6/Archives Scavenger-Mutant | -5/Factory Scavenger-Mutant | -5/Upper Caves Scavenger-Mutant | -5/Upper Caves Scavenger-Mutant | -5/Warlord Mutant | -4/Proximity Caves Mutant | -4/Factory Mutant | -4/DSF Mutant | -3/Research Scavenger-Mutant | -3/Testing Messiah-Tank | -2/Research Mutant | -1/Access Resources | -11 -10 -10 -9 -9 -7 -6 -6 -6 -6 -6 -5 -5 -5 -5 -4 -4 -4 -3 -3 -2 -1 ----------- Run | Yrd Mat Min Mat Min Zio Pro Fac Ext Cet Arc Fac Upp Upp War Pro Fac DSF Res Tes Res Acc Matter Collected 4307 | 285 5 128 743 72 120 322 100 516 154 20 . 202 10 81 34 . . 215 403 882 15 Remotely . | . . . . . . . . . . . . . . . . . . . . . . Salvage Created 7456 | 88 56 169 1074 85 . 524 . 199 90 . 38 . . 902 121 . . 113 834 3163 . Parts 308 | 7 5 17 61 10 . 19 . 9 5 . 3 . . 24 11 . . 4 40 93 . Haulers Intercepted 2 | . . . 1 . . . . . . . . . . . . . . . . 1 . Recyclers Shooed 4 | 1 1 . . . . . . . . . . . . . . . . . . 2 . Parts Field Recycled . | . . . . . . . . . . . . . . . . . . . . . . Retrieved Matter . | . . . . . . . . . . . . . . . . . . . . . . Parts Self-Destructed 45 | . . . . . . 18 . . . . . . 18 . 9 . . . . . . Prevented 8 | . . . . . . 8 . . . . . . . . . . . . . . . Kills | -11 -10 -10 -9 -9 -7 -6 -6 -6 -6 -6 -5 -5 -5 -5 -4 -4 -4 -3 -3 -2 -1 ------- Run | Yrd Mat Min Mat Min Zio Pro Fac Ext Cet Arc Fac Upp Upp War Pro Fac DSF Res Tes Res Acc Combat Hostiles Destroyed 189 | . 2 9 30 5 . 21 . 3 2 . 1 . . 55 4 . . . 9 48 . Melee 10 | . . . . . . 1 . 3 . . . . . . 3 . . . 3 . . Guns 23 | . . . 7 . . . . . 1 . 1 . . 3 1 . . . . 10 . Cannons 53 | . . . 17 5 . 6 . . 1 . . . . 7 . . . . 3 14 . AOE 98 | . 2 9 6 . . 14 . . . . . . . 45 . . . . 3 19 . Classes Destroyed 25 | 2 1 1 5 . . 5 . . . . 1 . . 5 1 . . . 2 2 . Worker 8 | . . . 1 . . . . . . . . . . . . . . . 2 5 . Builder 9 | . . . 4 . . . . . . . . . . . . . . . . 5 . Tunneler 2 | 2 . . . . . . . . . . . . . . . . . . . . . Hauler 2 | . . . 1 . . . . . . . . . . . . . . . . 1 . Recycler 4 | 1 . . . . . . . . . . . . . . . . . 1 1 1 . Mechanic 3 | . . . . . . . . . . . . . . . . . . . . 3 . Drone 1 | . . . . . . 1 . . . . . . . . . . . . . . . Watcher 6 | . . . 5 . . . . . 1 . . . . . . . . . . . . Swarmer 18 | . . 3 . 2 . 5 . . . . . . . . 4 . . . . 4 . Saboteur 4 | . . . . . . . . . . . . . . 4 . . . . . . . Grunt 98 | . 2 6 22 3 . 7 . . . . . . . 29 . . . . 4 25 . Brawler 13 | . . . . . . 2 . . . . . . . 6 . . . . . 5 . Duelist 5 | . . . . . . 3 . . . . . . . 2 . . . . . . . Protector 6 | . . . . . . 1 . . . . . . . 5 . . . . . . . Researcher 3 | . . . . . . . . . . . . . . . . . . . 3 . . Sentry 15 | . . . 8 . . 1 . 3 . . . . . . . . . . . 3 . Demolisher 2 | . . . . . . . . . . . . . . 2 . . . . . . . Hunter 6 | . . . . . . . . . . . 1 . . . . . . . 2 3 . Programmer 12 | . . . . . . 1 . . . . . . . 3 . . . . 2 6 . Heavy 1 | . . . . . . . . . . . . . . . . . . . . 1 . Q-Series 1 | . . . . . . . . . . . . . . . . . . . . 1 . Cetus Guard 2 | . . . . . . . . . 2 . . . . . . . . . . . . Executioner 3 | . . . . . . . . . . . . . . 3 . . . . . . . Alpha 7 1 | . . . . . . . . . . . . . . . . . . . 1 . . Samaritan 1 | . . . . . . . . . . . . . . . 1 . . . . . . Surgeon 1 | . . . . . . . . . . . . . . 1 . . . . . . . Thug 5 | . . . . . . . . . . . . . . 5 . . . . . . . Mutant 1 | . . . . . . . . . . . . . . 1 . . . . . . . Best Kill Streak 19 | 3 2 3 11 3 . 7 . 2 3 . 1 . . 15 15 . . 1 5 19 . Combat Bots Only 15 | . 2 3 4 3 . 7 . 2 2 . 1 . . 15 15 . . . 4 9 . Max Kills in Single Turn 7 | 1 1 3 3 2 . 4 . 1 1 . 1 . . 7 1 . . 1 3 4 . Gunslinging . | . . . . . . . . . . . . . . . . . . . . . . Exploded 6 | . 1 3 2 . . 4 . . . . . . . 6 . . . . 2 2 . Melee 1 | . . . . . . 1 . 1 . . . . . . 1 . . . 1 . . Uniques/NPCs Destroyed . | . . . . . . . . . . . . . . . . . . . . . . Combat | -11 -10 -10 -9 -9 -7 -6 -6 -6 -6 -6 -5 -5 -5 -5 -4 -4 -4 -3 -3 -2 -1 -------- Run | Yrd Mat Min Mat Min Zio Pro Fac Ext Cet Arc Fac Upp Upp War Pro Fac DSF Res Tes Res Acc Hostile Shots Fired 1772 | . 2 8 120 23 . 67 4 134 30 28 3 . 9 187 60 . 55 20 152 588 282 Missed 570 | . . 1 43 7 . 25 1 40 9 11 . . 2 53 14 . 22 8 43 201 90 Hits 1202 | . 2 7 77 16 . 42 3 94 21 17 3 . 7 134 46 . 33 12 109 387 192 Melee 11 | . . . . . . 2 . . . . . . . 4 . . . . . 5 . Projectile 1191 | . 2 7 77 16 . 40 3 94 21 17 3 . 7 130 46 . 33 12 109 382 192 AOE 8 | . . . . . . . . . . . . . . 2 . . . . . 6 . Critical Strikes 43 | . . . 2 . . 1 1 . 3 . . . . 7 . . 1 . 8 17 3 Damage Taken 26891 | . 35 145 1263 171 . 783 44 998 608 418 . . 162 3990 697 . 563 265 2038 10336 4375 Core 4721 | . . 33 124 15 . 83 . 108 13 78 . . 19 456 155 . 444 33 235 1309 1616 Absorbed by Shields 1301 | . . . . . . . . . 69 . . . . . . . . 22 637 573 . Redirected to Shielding 123 | . . . . . . . . . . . . . . . . . . . . 123 . Ignored by Resistances 200 | . . . . . . . . . . . . . . . . . . . . 200 . Regen/Repaired (Parts) 1415 | . . . . . 142 . . 333 . . . . . . . . . 141 284 515 . Core Remaining (%) 61 | 100 . 86 . . . 44 . . . 76 . . . . 37 . 61 . 79 9 . Volleys Fired 421 | 9 6 7 83 8 . 43 . 7 9 . 4 . . 54 4 . . 1 29 151 6 Largest 2 | 2 1 1 2 2 . 2 . 1 1 . 2 . . 1 1 . . 1 1 2 1 Hottest 240 | 40 40 30 102 74 . 74 . 30 240 . 115 . . 45 40 . . 5 150 200 94 Shots Fired 534 | 18 6 7 146 16 . 51 . 7 9 . 7 . . 54 6 . . 1 32 168 6 Gun 204 | 18 3 . 55 . . . . 7 4 . 7 . . 28 6 . . . 3 67 6 Cannon 230 | . . . 80 16 . 29 . . . . . . . . . . . . 25 80 . Launcher 58 | . 3 7 11 . . 17 . . . . . . . 2 . . . . 3 15 . Special 42 | . . . . . . 5 . . 5 . . . . 24 . . . 1 1 6 . Kinetic 221 | 18 . . 118 16 . 29 . 7 1 . 4 . . . . . . . . 28 . Thermal 141 | . 3 . 17 . . . . . 3 . 3 . . . . . . . 28 81 6 Explosive 81 | . 3 7 11 . . 22 . . 5 . . . . 24 . . . . 3 6 . Electromagnetic 3 | . . . . . . . . . . . . . . . . . . . . 3 . Entropic 42 | . . . . . . . . . . . . . . 30 6 . . . . 6 . Phasic 38 | . . . . . . . . . . . . . . . . . . . . 38 . Robot Hit Streak 22 | 8 3 4 9 4 . 10 . 2 6 . 8 . . 22 1 . . 2 8 19 3 Robot Miss Streak 24 | 3 1 . 11 6 . 24 . 2 3 . 1 . . 1 3 . . . 2 4 1 Penetration Max . | . . . . . . . . . . . . . . . . . . . . . . Secondary Targets . | . . . . . . . . . . . . . . . . . . . . . . Shots Hit Robots 439 | 11 4 2 116 12 . 34 . 37 8 3 4 . . 50 5 . . 2 40 108 3 Core Hits 483 | 4 3 12 99 18 . 65 . 6 8 . 2 . . 135 4 . . . 21 106 . Critical Kills 4 | . . . . . . . . . . . 1 . . . . . . . . 3 . Critical Parts Destroyed 1 | . . . . . . . . . . . . . . 1 . . . . . . . Critical Strikes 21 | . . . . . . . . 1 . . 1 . . 7 . . . . 5 7 . Meltdown 3 | . . . . . . . . . . . . . . . . . . . . 3 . Destroy 1 | . . . . . . . . . . . 1 . . . . . . . . . . Sever 6 | . . . . . . . . . . . . . . 6 . . . . . . . Impale 6 | . . . . . . . . 1 . . . . . . . . . . 5 . . Detonate 1 | . . . . . . . . . . . . . . 1 . . . . . . . Intensify 4 | . . . . . . . . . . . . . . . . . . . . 4 . Melee Attacks 259 | . . . . . . 3 7 41 2 3 14 1 . 19 18 1 . 8 75 36 31 Impact . | . . . . . . . . . . . . . . . . . . . . . . Slashing . | . . . . . . . . . . . . . . . . . . . . . . Piercing 223 | . . . . . . 3 7 16 1 . 13 1 . 13 18 1 . 8 75 36 31 Sneak Attacks 39 | . . . . . . . . 25 1 3 1 . . 5 1 . . 1 2 . . Combat Hostiles . | . . . . . . . . . . . . . . . . . . . . . . Follow-up Attacks . | . . . . . . . . . . . . . . . . . . . . . . Damage Inflicted 41863 | 106 230 651 2583 275 . 2361 . 441 537 . 87 . . 16363 208 . . 129 2469 15334 89 Guns 4103 | 106 24 . 620 . . . . 87 110 . 87 . . 948 45 . . . 63 1924 89 Cannons 6855 | . . . 1089 275 . 387 . . . . . . . . . . . . 700 4404 . Explosions 27701 | . 206 651 874 . . 1795 . . 236 . . . . 14284 . . . . 689 8966 . Melee 1871 | . . . . . . 66 . 354 34 . . . . 68 163 . . 129 1017 40 . Ramming . | . . . . . . . . . . . . . . . . . . . . . . Kinetic 2972 | 106 . . 1504 275 . 387 . 87 . . 39 . . . . . . . . 574 . Thermal 10072 | . 24 147 351 . . . . . 110 . 48 . . 108 . . . . 763 8432 89 Explosive 18906 | . 206 504 728 . . 1795 . . 236 . . . . 13263 . . . . 689 1485 . Electromagnetic 587 | . . . . . . . . . . . . . . . . . . . . 587 . Impact . | . . . . . . . . . . . . . . . . . . . . . . Slashing 1333 | . . . . . . 113 . . 157 . . . . 1063 . . . . . . . Piercing 1871 | . . . . . . 66 . 354 34 . . . . 68 163 . . 129 1017 40 . Entropic 4802 | . . . . . . . . . . . . . . 1861 45 . . . . 2896 . Phasic 1320 | . . . . . . . . . . . . . . . . . . . . 1320 . Highest Corruption 38 | . . . . . . 5 . . . 38 . . . 2 3 . . 1 14 20 6 Average Corruption 5 | . . . . . . 5 . . . 27 . . . 1 3 . . 1 4 8 2 Corruption Purged . | . . . . . . . . . . . . . . . . . . . . . . Corruption Blocked 5 | . . . . . . . . . . . . . . . . . . . 5 . . Effects 73 | . . . . . . 8 . . . 4 . . . 2 11 . . . 15 30 3 Message Errors 20 | . . . . . . 3 . . . 1 . . . 1 3 . . . 5 6 1 Matter Fused 16 | . . . . . . 2 . . . 2 . . . . 2 . . . 3 7 . Heat Flow Errors 6 | . . . . . . . . . . . . . . . 2 . . . . 4 . Energy Discharges 11 | . . . . . . 2 . . . . . . . 1 2 . . . 3 2 1 Parts Rejected 1 | . . . . . . . . . . . . . . . . . . . . 1 . Parts Fused 1 | . . . . . . . . . . . . . . . . . . . . 1 . Data Loss (minor) 6 | . . . . . . 1 . . . . . . . . . . . . . 4 1 Data Loss (major) 2 | . . . . . . . . . . 1 . . . . . . . . 1 . . Misfires 7 | . . . . . . . . . . . . . . . 2 . . . 3 2 . Alerts 1 | . . . . . . . . . . . . . . . . . . . . 1 . Weapon Failures 2 | . . . . . . . . . . . . . . . . . . . . 2 . Overload Shots 22 | . . . . . . . . . 1 . . . . . . . . . 10 11 . Effects 3 | . . . . . . . . . . . . . . . . . . . . 3 . Energy Bleed 1 | . . . . . . . . . . . . . . . . . . . . 1 . Heat Surge 2 | . . . . . . . . . . . . . . . . . . . . 2 . Overflow Damage 2380 | . 14 37 68 . . 27 . 25 . . . . . 441 24 . . 99 274 1371 . Projectiles 852 | . . . . . . 4 . . . . . . . 131 . . . . 34 683 . Explosions 1134 | . 14 37 68 . . 17 . . . . . . . 310 . . . . . 688 . Melee 394 | . . . . . . 6 . 25 . . . . . . 24 . . 99 240 . . Knockbacks 49 | . . . 27 9 . 13 . . . . . . . . . . . . . . . Impact . | . . . . . . . . . . . . . . . . . . . . . . Kinetic 49 | . . . 27 9 . 13 . . . . . . . . . . . . . . . Secondary . | . . . . . . . . . . . . . . . . . . . . . . Self-Inflicted Damage 977 | . 11 56 271 . . . . . . . . . . 306 . . . . . 333 . Shots 21 | . 1 3 3 . . . . . . . . . . 3 . . . . . 11 . Rammed . | . . . . . . . . . . . . . . . . . . . . . . Targets Rammed . | . . . . . . . . . . . . . . . . . . . . . . Kicked . | . . . . . . . . . . . . . . . . . . . . . . Crushed . | . . . . . . . . . . . . . . . . . . . . . . Highest Temperature 456 | . 12 22 456 111 . 63 . 9 210 3 114 . 2 . 102 . . 2 336 196 170 Average Temperature 73 | . 5 11 84 45 . 21 . 7 99 2 51 . 2 . 58 . . 2 114 85 53 Received Heat Transfer 2365 | . 15 54 501 63 . 195 . 159 84 63 . . 18 360 . . . 69 18 676 90 Effects 2 | . . . 2 . . . . . . . . . . . . . . . . . . Shutdowns 1 | . . . 1 . . . . . . . . . . . . . . . . . . Energy Bleed 1 | . . . 1 . . . . . . . . . . . . . . . . . . Siege Activations . | . . . . . . . . . . . . . . . . . . . . . . Martial Activations . | . . . . . . . . . . . . . . . . . . . . . . Shielding Activations . | . . . . . . . . . . . . . . . . . . . . . . Robots Disrupted 2 | . . . . . . . . . . . . . . . . . . . . 2 . Combat Hostiles 2 | . . . . . . . . . . . . . . . . . . . . 2 . Robots Corrupted 2 | . . . . . . . . . . . . . . . . . . . . 2 . Combat Hostiles 2 | . . . . . . . . . . . . . . . . . . . . 2 . Parts Fried 4 | . . . . . . . . . . . . . . . . . . . . 4 . Impact Corruptions . | . . . . . . . . . . . . . . . . . . . . . . Robots Melted 3 | . . . . . . . . . . . . . . . . . . . . 3 . Combat Hostiles 3 | . . . . . . . . . . . . . . . . . . . . 3 . Parts Melted 14 | . . 1 . . . . . . . . . . . . . . . . 2 11 . Heat Transferred 8410 | . 50 150 581 . . . . . 124 . 74 . . 50 . . . . 694 6576 111 Parts Sabotaged 3 | . . . . . . . . . . . . . . 3 . . . . . . . Parts Stolen . | . . . . . . . . . . . . . . . . . . . . . . Parts Stripped . | . . . . . . . . . . . . . . . . . . . . . . Power Chain Reactions . | . . . . . . . . . . . . . . . . . . . . . . Alert | -11 -10 -10 -9 -9 -7 -6 -6 -6 -6 -6 -5 -5 -5 -5 -4 -4 -4 -3 -3 -2 -1 ------- Run | Yrd Mat Min Mat Min Zio Pro Fac Ext Cet Arc Fac Upp Upp War Pro Fac DSF Res Tes Res Acc Maximum Alert Level 5 | . . 2 3 1 . . 3 2 1 . . . . . . . . . 1 5 4 Low Security (%) 34 | 100 100 11 5 37 . . . 9 21 100 100 . . . . 100 100 100 81 11 . Level 1 25 | . . 80 27 62 . . . 55 78 . . . . . . . . . 18 4 . Level 2 17 | . . 8 66 . . . 34 35 . . . . . . . . . . . 2 . Level 3 14 | . . . . . . . 65 . . . . . . . . . . . . 59 . Level 4 7 | . . . . . . . . . . . . . . . . . . . . 15 100 Level 5 . | . . . . . . . . . . . . . . . . . . . . 4 . High Security . | . . . . . . . . . . . . . . . . . . . . 2 . Max Security . | . . . . . . . . . . . . . . . . . . . . . . Peak Influence 2150 | 10 66 430 709 295 . . 986 564 354 197 120 . . . . 7 15 169 226 2150 1435 Initial 1262 | . . 12 163 276 . . 986 291 268 62 47 . . . . . . 2 93 75 1262 Average 437 | 1 22 265 482 217 . . 807 333 253 143 37 . . . . . 2 44 114 910 1256 Influence Increases 11260 | 15 88 488 1074 222 . 531 906 834 325 175 187 . 460 1552 90 7 15 283 552 3086 370 Destroy 0b10 Robot/C 5440 | . 40 180 600 160 . 420 . 420 160 80 40 . 200 1140 80 . . 140 240 1440 100 Destroy 0b10 Robot/NC 285 | 15 . . 55 . . 10 . 10 10 . 5 . . 25 . . . 20 25 95 15 Destroy Leader 784 | . 10 40 192 30 . 50 . 52 . . 12 . 30 . 10 . . 22 32 268 36 Allied During Kill 1619 | . . . . 17 . 51 . 293 136 80 57 . 230 387 . . . 60 12 215 81 Successful Hack 45 | . 15 . 11 . . . . 12 . . . . . . . 5 . . 2 . . Disable Machine 585 | . . 195 60 15 . . . 30 . 15 15 . . . . . . . 135 105 15 Anti-Garrison Action 150 | . . . . . . . . . . . . . . . . . . . . 150 . Destroy Structure 1287 | . 23 73 111 . . . 6 17 19 . 58 . . . . 2 . 26 106 738 108 Advance Influence 900 | . . . . . . . 900 . . . . . . . . . . . . . . Lose Combat Pursuer 165 | . . . 45 . . . . . . . . . . . . . 15 15 . 75 15 Influence Decreases 10124 | 15 55 101 785 807 124 393 448 951 647 195 278 46 206 524 1372 7 10 121 584 1116 1339 Entered New Map 4122 | . . 21 257 433 124 . 52 305 211 95 90 18 . 254 1282 . . 3 74 60 843 Time Decay 4100 | 15 55 80 498 334 . 243 246 526 206 80 188 28 196 90 60 7 . 98 398 546 206 Search Patrol Dispatched 150 | . . . . . . . 150 . . . . . . . . . . . . . . Lost Part 850 | . . . 30 20 . 30 . 20 10 . . . 10 90 30 . . . 70 370 170 Lost Ally 902 | . . . . 20 . 120 . 100 220 20 . . . 90 . . 10 20 42 140 120 Squads Dispatched 46 | . . . 8 . . 1 1 1 . . 1 . . . . . 1 2 6 20 5 Investigation 12 | . . . 8 . . . . . . . . . . . . . . . 2 2 . Extermination 10 | . . . . . . . 1 . . . 1 . . . . . . 1 1 4 2 Reinforcement 11 | . . . . . . . . 1 . . . . . . . . 1 1 3 5 . Assault 10 | . . . . . . 1 . . . . . . . . . . . . . 8 1 Garrison 3 | . . . . . . . . . . . . . . . . . . . . 1 2 Intercept . | . . . . . . . . . . . . . . . . . . . . . . Searches Triggered 1 | . . . . . . . 1 . . . . . . . . . . . . . . Construction Impeded 1 | . . . . . . . . . . . . . . . . . . . . 1 . Haulers Reinforced 1 | . . . . . . . . . . . . . . . . . . . . 1 . Active Scanning Responses . | . . . . . . . . . . . . . . . . . . . . . . Cargo Convoy Interrupts 1 | . . . . . . . . . . . . . . . . . . . . 1 . Stealth | -11 -10 -10 -9 -9 -7 -6 -6 -6 -6 -6 -5 -5 -5 -5 -4 -4 -4 -3 -3 -2 -1 --------- Run | Yrd Mat Min Mat Min Zio Pro Fac Ext Cet Arc Fac Upp Upp War Pro Fac DSF Res Tes Res Acc Distress Signals 15 | . . . 1 . . 2 . 1 2 . . . . . . . . . 1 4 4 Communications Jammed . | . . . . . . . . . . . . . . . . . . . . . . Distress Signals . | . . . . . . . . . . . . . . . . . . . . . . Times Spotted 367 | . 3 9 40 6 . 27 2 26 10 3 4 1 10 83 4 . 3 8 15 92 21 Peak Tracking Total 19 | . 3 3 6 3 . 8 1 5 5 2 2 1 3 19 4 . 2 4 5 8 14 Tactical Retreats 10 | . . . 2 . . . . . . . . . . . . . 1 1 . 5 1 Traps | -11 -10 -10 -9 -9 -7 -6 -6 -6 -6 -6 -5 -5 -5 -5 -4 -4 -4 -3 -3 -2 -1 ------- Run | Yrd Mat Min Mat Min Zio Pro Fac Ext Cet Arc Fac Upp Upp War Pro Fac DSF Res Tes Res Acc Traps Triggered 11 | . . . 1 . . . . 4 . . . . . . . . . . . 4 2 Indirectly 3 | . . . . . . . . . . . . . . . . . . . . 3 . Trap Hack Attempts . | . . . . . . . . . . . . . . . . . . . . . . Triggered . | . . . . . . . . . . . . . . . . . . . . . . Disarmed . | . . . . . . . . . . . . . . . . . . . . . . Reprogrammed . | . . . . . . . . . . . . . . . . . . . . . . Reused . | . . . . . . . . . . . . . . . . . . . . . . Traps Extracted . | . . . . . . . . . . . . . . . . . . . . . . Installed . | . . . . . . . . . . . . . . . . . . . . . . Triggered . | . . . . . . . . . . . . . . . . . . . . . . Machines | -11 -10 -10 -9 -9 -7 -6 -6 -6 -6 -6 -5 -5 -5 -5 -4 -4 -4 -3 -3 -2 -1 ---------- Run | Yrd Mat Min Mat Min Zio Pro Fac Ext Cet Arc Fac Upp Upp War Pro Fac DSF Res Tes Res Acc Machines Disabled 42 | . . 13 4 1 . 1 . 2 . 1 1 1 . . . . . . 9 8 1 Max in Single Turn 9 | . . 9 2 . . 1 . . . . . 1 . . . . . . 1 2 1 Garrison Access 2 | . . . . . . . . . . . . . . . . . . . 1 1 . Machines Repaired . | . . . . . . . . . . . . . . . . . . . . . . Machines Dismantled . | . . . . . . . . . . . . . . . . . . . . . . Machines Sabotaged . | . . . . . . . . . . . . . . . . . . . . . . Overloaded Fab Kills . | . . . . . . . . . . . . . . . . . . . . . . Hacking | -11 -10 -10 -9 -9 -7 -6 -6 -6 -6 -6 -5 -5 -5 -5 -4 -4 -4 -3 -3 -2 -1 --------- Run | Yrd Mat Min Mat Min Zio Pro Fac Ext Cet Arc Fac Upp Upp War Pro Fac DSF Res Tes Res Acc Machines Accessed 39 | . 5 . 8 1 . . 2 8 . . . . . 7 . 2 . 1 4 . 1 Terminals 23 | . 5 . 8 1 . . 1 7 . . . . . . . 1 . . . . . Fabricators 2 | . . . . . . . . . . . . . . . . . . . 1 . 1 Repair Stations 4 | . . . . . . . . 1 . . . . . . . 1 . 1 1 . . Recycling Units 1 | . . . . . . . 1 . . . . . . . . . . . . . . Scanalyzers 1 | . . . . . . . . . . . . . . . . . . . 1 . . Garrison Access 1 | . . . . . . . . . . . . . . . . . . . 1 . . Total Hacks 93 | . 17 . 20 4 . . 3 17 . . . . . 19 . 3 . 4 5 . 1 Successful 50 | . 8 . 4 1 . . 3 11 . . . . . 19 . 1 . . 3 . . Failed 43 | . 9 . 16 3 . . . 6 . . . . . . . 2 . 4 2 . 1 Catastrophic 10 | . 3 . 6 . . . . . . . . . . . . 1 . . . . . Database Lockouts . | . . . . . . . . . . . . . . . . . . . . . . Manual 105 | . 13 . 15 4 . . . 3 1 . 21 . . . . 3 . 10 11 15 9 Terminals 57 | . 17 . 20 4 . . 1 13 . . . . . . . 2 . . . . . Fabricators 2 | . . . . . . . . . . . . . . . . . . . 1 . 1 Repair Stations 10 | . . . . . . . . 4 . . . . . . . 1 . 4 1 . . Recycling Units 2 | . . . . . . . 2 . . . . . . . . . . . . . . Scanalyzers 2 | . . . . . . . . . . . . . . . . . . . 2 . . Garrison Access 1 | . . . . . . . . . . . . . . . . . . . 1 . . Terminal Hacks 39 | . 7 . 3 1 . . 1 7 . . . . . 19 . 1 . . . . . Record 17 | . . . . . . . . . . . . . . 17 . . . . . . . Robot Analysis 1 | . 1 . . . . . . . . . . . . . . . . . . . . Prototype ID Bank 1 | . 1 . . . . . . . . . . . . . . . . . . . . Open Door 10 | . . . . . . . 1 7 . . . . . 2 . . . . . . . Open DSF 1 | . . . . . . . . . . . . . . . . 1 . . . . . Branch Access Points 1 | . 1 . . . . . . . . . . . . . . . . . . . . Emergency Access Points 2 | . 1 . 1 . . . . . . . . . . . . . . . . . . Registered Components 2 | . 1 . 1 . . . . . . . . . . . . . . . . . . Zone Layout 4 | . 2 . 1 1 . . . . . . . . . . . . . . . . . Fabricator Hacks . | . . . . . . . . . . . . . . . . . . . . . . Repair Station Hacks 4 | . . . . . . . . 4 . . . . . . . . . . . . . Scan Component 2 | . . . . . . . . 2 . . . . . . . . . . . . . Repair 2 | . . . . . . . . 2 . . . . . . . . . . . . . Recycling Unit Hacks 2 | . . . . . . . 2 . . . . . . . . . . . . . . Report Inventory 1 | . . . . . . . 1 . . . . . . . . . . . . . . Retrieve Components 1 | . . . . . . . 1 . . . . . . . . . . . . . . Scanalyzer 2 | . . . . . . . . . . . . . . . . . . . 2 . . Insert Component 1 | . . . . . . . . . . . . . . . . . . . 1 . . Analyze 1 | . . . . . . . . . . . . . . . . . . . 1 . . Garrison Access Hacks 1 | . . . . . . . . . . . . . . . . . . . 1 . . Seal Access 1 | . . . . . . . . . . . . . . . . . . . 1 . . Unauthorized Hacks 2 | . 1 . 1 . . . . . . . . . . . . . . . . . . Terminals 2 | . 1 . 1 . . . . . . . . . . . . . . . . . . Botnet 2 | . 1 . 1 . . . . . . . . . . . . . . . . . . Fabricators . | . . . . . . . . . . . . . . . . . . . . . . Repair Stations . | . . . . . . . . . . . . . . . . . . . . . . Recycling Units . | . . . . . . . . . . . . . . . . . . . . . . Scanalyzers . | . . . . . . . . . . . . . . . . . . . . . . Garrison Access . | . . . . . . . . . . . . . . . . . . . . . . Data Cores Recovered . | . . . . . . . . . . . . . . . . . . . . . . Used . | . . . . . . . . . . . . . . . . . . . . . . Hacking Detections 23 | . 5 . 7 1 . . 1 4 . . . . . . . 2 . 1 1 . 1 Full Trace Events 10 | . 2 . 7 1 . . . . . . . . . . . . . . . . . Feedback Events . | . . . . . . . . . . . . . . . . . . . . . . Feedback Blocked . | . . . . . . . . . . . . . . . . . . . . . . Robot Schematics Acquired 8 | . . . . . 3 . . . . . . . . . . . . . 5 . . Robots Built . | . . . . . . . . . . . . . . . . . . . . . . Authchips . | . . . . . . . . . . . . . . . . . . . . . . Time . | . . . . . . . . . . . . . . . . . . . . . . Total Robot Build Rating . | . . . . . . . . . . . . . . . . . . . . . . Part Schematics Acquired 34 | . . . . . 14 . . . . . 13 . . . . . . . 7 . . Parts Built . | . . . . . . . . . . . . . . . . . . . . . . Authchips . | . . . . . . . . . . . . . . . . . . . . . . Time . | . . . . . . . . . . . . . . . . . . . . . . Total Part Build Rating . | . . . . . . . . . . . . . . . . . . . . . . Parts Repaired 2 | . . . . . . . . 2 . . . . . . . . . . . . . Time 100 | . . . . . . . . 100 . . . . . . . . . . . . . Parts Recycled . | . . . . . . . . . . . . . . . . . . . . . . Recycled Matter . | . . . . . . . . . . . . . . . . . . . . . . Retrieved Matter . | . . . . . . . . . . . . . . . . . . . . . . Retrieved Components 3 | . . . . . . . 3 . . . . . . . . . . . . . . Parts Scanalyzed 1 | . . . . . . . . . . . . . . . . . . . 1 . . Part Schematics Acquired 1 | . . . . . . . . . . . . . . . . . . . 1 . . Parts Damaged . | . . . . . . . . . . . . . . . . . . . . . . Bothacking | -11 -10 -10 -9 -9 -7 -6 -6 -6 -6 -6 -5 -5 -5 -5 -4 -4 -4 -3 -3 -2 -1 ------------ Run | Yrd Mat Min Mat Min Zio Pro Fac Ext Cet Arc Fac Upp Upp War Pro Fac DSF Res Tes Res Acc Used RIF Installer . | . . . . . . . . . . . . . . . . . . . . . . Robots Hacked 15 | . . . . . . . . 2 . 1 1 . . 6 . . . 1 1 3 . Non-combat 3 | . . . . . . . . . . 1 . . . 1 . . . . . 1 . Combat 12 | . . . . . . . . 2 . . 1 . . 5 . . . 1 1 2 . Robot Hacks Applied 18 | . . . . . . . . 2 1 3 1 . . 6 . . . 1 1 3 . parse_system 15 | . . . . . . . . 2 1 1 1 . . 6 . . . 1 1 2 . no_distress 2 | . . . . . . . . . . 1 . . . . . . . . . 1 . check_alert 1 | . . . . . . . . . . 1 . . . . . . . . . . . Relay Couplers Released 3 | . . . . . . . . . . . . . . . . . . . . 3 . Machine Destruction 3 | . . . . . . . . . . . . . . . . . . . . 3 . Fabnet Peak Effective % . | . . . . . . . . . . . . . . . . . . . . . . Robots Rewired 12 | . . . . . . 2 . 10 . . . . . . . . . . . . . Allies Hacked 1 | . . . . . . 1 . . . . . . . . . . . . . . . Hacks Repelled . | . . . . . . . . . . . . . . . . . . . . . . Allies | -11 -10 -10 -9 -9 -7 -6 -6 -6 -6 -6 -5 -5 -5 -5 -4 -4 -4 -3 -3 -2 -1 -------- Run | Yrd Mat Min Mat Min Zio Pro Fac Ext Cet Arc Fac Upp Upp War Pro Fac DSF Res Tes Res Acc Total Allies 51 | . . . . 2 4 2 . 20 5 . . . . . . 1 . 4 . 7 6 Largest Group 12 | . . . . 2 4 4 . 12 12 6 4 4 4 4 . 1 1 4 3 5 5 Highest-Rated Group 573 | . . . . 42 153 153 . 524 573 424 384 375 375 375 . 27 27 412 309 360 525 Highest-Rated Ally 159 | . . . . 31 40 40 . 159 159 96 96 96 96 96 . 27 27 103 103 122 122 Zionite Dispatches 11 | . . . . . . . . 1 . . 1 . . . . 1 . 2 . 3 3 Heavy 6 | . . . . . . . . . . . . . . . . . . 2 . 2 2 Recon 1 | . . . . . . . . . . . 1 . . . . . . . . . . Fire 1 | . . . . . . . . . . . . . . . . . . . . 1 . Hacker 1 | . . . . . . . . . . . . . . . . . . . . . 1 Hero 1 | . . . . . . . . 1 . . . . . . . . . . . . . Resource Resupply 1 | . . . . . . . . . . . . . . . . 1 . . . . . Total Orders 10 | . . . . . . . . 2 . . 2 . . . 3 1 . . 2 . . STAY 1 | . . . . . . . . 1 . . . . . . . . . . . . . FOLLOW 1 | . . . . . . . . 1 . . . . . . . . . . . . . DROP 1 | . . . . . . . . . . . . . . . . 1 . . . . . EXPLORE 7 | . . . . . . . . . . . 2 . . . 3 . . . 2 . . Ally Attacks 538 | . . . . 11 . 37 . 140 56 21 14 2 30 77 . . . 21 9 91 29 Total Damage 20084 | . . . . 171 . 559 . 3846 1353 925 600 93 1274 2962 . . . 1618 716 4182 1785 Kills 118 | . . . . 3 . 2 . 23 7 5 2 1 10 17 . . . 10 2 28 8 Allies Corrupted 6 | . . . . . . . . . . . . . . . . . . 1 2 3 . Allies Melted 2 | . . . . . . 1 . . . . . . . 1 . . . . . . . Intel | -11 -10 -10 -9 -9 -7 -6 -6 -6 -6 -6 -5 -5 -5 -5 -4 -4 -4 -3 -3 -2 -1 ------- Run | Yrd Mat Min Mat Min Zio Pro Fac Ext Cet Arc Fac Upp Upp War Pro Fac DSF Res Tes Res Acc Active Infowar (turns) 10020 | . . . . . . . 536 1460 432 172 525 384 633 1302 909 56 60 437 1070 1627 417 Optics 7809 | . . . . . . . 535 1460 432 161 525 384 633 1302 909 56 60 437 763 152 . Decoding 7697 | . . . . . . . 536 1460 432 172 525 384 633 1302 909 56 60 437 791 . . Machine Analysis 9910 | . . . . . . . 426 1460 432 172 525 384 633 1302 909 56 60 437 1070 1627 417 Robot Analysis Total 1 | . 1 . . . . . . . . . . . . . . . . . . . . Derelict Logs Recovered 7 | . . . . 1 1 1 . . . . . . 1 . 3 . . . . . . Drone Launches 13 | . . . . . . . . . . . 2 . 3 . 4 . . . 4 . . Drone Recoveries 10 | . . . . . . . . . . . 2 . 1 . 3 . . . 4 . . Decoded 0b10 Intel 87 | . . . . . . . 13 33 6 1 13 . . . . 1 1 7 12 . . Traps 36 | . . . . . . . 1 7 . . 10 . . . . 1 1 6 10 . . Emergency Access 7 | . . . . . . . . 1 . . 3 . . . . . . 1 2 . . Items 27 | . . . . . . . 10 17 . . . . . . . . . . . . . Machines 12 | . . . . . . . 2 5 5 . . . . . . . . . . . . Guards 3 | . . . . . . . . 3 . . . . . . . . . . . . . Exits 2 | . . . . . . . . . 1 1 . . . . . . . . . . . Zionite Intel Received 6 | . . . . . . . . . . . 3 . . . . . . 1 2 . . Branch Access 2 | . . . . . . . . . . . 1 . . . . . . 1 . . . Emergency Access 1 | . . . . . . . . . . . . . . . . . . . 1 . . Prototype Stockpiles 1 | . . . . . . . . . . . 1 . . . . . . . . . . Component Schematics 1 | . . . . . . . . . . . 1 . . . . . . . . . . Unaware Analyses 1 | . . . . . . . . . . . . . . . . . . . 1 . . Exploration | -11 -10 -10 -9 -9 -7 -6 -6 -6 -6 -6 -5 -5 -5 -5 -4 -4 -4 -3 -3 -2 -1 ------------- Run | Yrd Mat Min Mat Min Zio Pro Fac Ext Cet Arc Fac Upp Upp War Pro Fac DSF Res Tes Res Acc Turns Passed 15042 | 88 210 170 1335 745 1786 674 536 1460 432 172 525 384 633 1302 909 56 60 437 1070 1627 431 Spaces Moved 7935 | 61 201 125 663 372 1094 326 327 697 225 51 238 234 354 591 203 72 96 327 560 866 252 Core 378 | 19 . . . . . . . . . . . . . . 198 72 81 . . . 8 Treads 4782 | . 1 . 487 372 1094 326 209 581 225 51 238 234 354 591 5 . . . . 14 . Legs 2065 | . . . . . . . 118 116 . . . . . . . . . 184 560 852 235 Wheels 710 | 42 200 125 176 . . . . . . . . . . . . . 15 143 . . 9 Hover . | . . . . . . . . . . . . . . . . . . . . . . Flight . | . . . . . . . . . . . . . . . . . . . . . . Fastest Speed 50 | 50 80 95 140 160 160 160 90 90 160 160 160 160 160 160 50 50 50 90 105 100 50 Average Speed 143 | 77 88 122 156 183 160 160 146 155 160 160 160 160 160 160 205 50 56 108 113 114 114 Slowest Speed 950 | 90 160 140 160 240 160 240 450 180 160 160 160 160 160 160 950 50 90 120 172 180 120 Overloaded Moves . | . . . . . . . . . . . . . . . . . . . . . . Propulsion Burnouts . | . . . . . . . . . . . . . . . . . . . . . . Robots Hopped . | . . . . . . . . . . . . . . . . . . . . . . Potential Cave-ins 53 | . . . . . . . . . . . 4 . . 7 . . . . 18 24 . Cave-ins Triggered 8 | . . . . . . . . . . . . . . . . . . . 4 3 1 Exploration Rate (%) 50 | 4 37 35 81 73 90 56 10 76 59 71 12 47 48 90 97 3 96 11 78 24 9 Regions Visited 21 Branch Regions 12 Pre-discovered Areas 5 | . . . . . 4 . . . . . . . 1 . . . . . . . . Known Exits Taken 6 | . 1 . . . . . . . 1 1 1 . . . . 1 . 1 . . . Unknown Exits Taken 14 | 1 . 1 1 1 1 1 1 1 . . . 1 1 1 1 . . . 1 1 . Scrap Searched 12 | . . 1 . 1 2 2 . . . . . 2 4 . . . . . . . . Spaces Dug 153 | . . . . . . . 6 6 . . 14 . . 18 3 1 . 5 44 43 13 Terrain Destroyed 1008 | . 21 90 129 . . 100 6 6 45 . 14 . . 216 8 1 . 5 58 296 13 Melee 125 | . . . . . . . 6 6 . . 13 . . 9 3 1 . 5 41 28 13 Projectile 63 | . . . . . . 1 . . 1 . 1 . . 16 5 . . . 6 33 . AOE 820 | . 21 90 129 . . 99 . . 44 . . . . 191 . . . . 11 235 . Terrain Rammed . | . . . . . . . . . . . . . . . . . . . . . . Walls Destroyed . | . . . . . . . . . . . . . . . . . . . . . . Machines Disabled . | . . . . . . . . . . . . . . . . . . . . . . Actions | -11 -10 -10 -9 -9 -7 -6 -6 -6 -6 -6 -5 -5 -5 -5 -4 -4 -4 -3 -3 -2 -1 --------- Run | Yrd Mat Min Mat Min Zio Pro Fac Ext Cet Arc Fac Upp Upp War Pro Fac DSF Res Tes Res Acc Total 10602 | 85 226 135 825 417 1137 420 373 1028 292 138 346 242 422 869 657 88 99 391 819 1267 326 Wait 1266 | . . . 23 36 14 7 8 216 8 74 77 4 60 159 424 10 . 13 45 74 14 Move 7910 | 60 200 124 662 371 1093 325 326 696 224 50 237 233 353 590 202 71 95 326 557 863 252 Hop . | . . . . . . . . . . . . . . . . . . . . . . Pick Up 226 | 10 8 2 26 . 16 1 10 12 18 1 3 1 3 13 . . . 23 27 42 10 Fast Attach 46 | . 3 . . . . 2 7 6 1 . . 1 1 . . 4 4 . 10 7 . Attach 141 | 6 2 . 7 2 . 4 4 6 3 1 3 . 1 14 4 . . 13 15 44 12 Detach 34 | . . . . . . 3 1 1 . . 1 . . 2 3 . . 3 6 14 . Swap 88 | . 2 1 10 . 1 2 1 11 10 7 7 . . 6 . . . 4 16 9 1 Drop 164 | . 5 1 14 . 13 3 9 17 17 2 . 2 4 12 2 2 . . 37 24 . Fire 421 | 9 6 7 83 8 . 43 . 7 9 . 4 . . 54 4 . . 1 29 151 6 Melee 259 | . . . . . . 3 7 41 2 3 14 1 . 19 18 1 . 8 75 36 31 Ram . | . . . . . . . . . . . . . . . . . . . . . . Kick . | . . . . . . . . . . . . . . . . . . . . . . Crush . | . . . . . . . . . . . . . . . . . . . . . . Escape Stasis 19 | . . . . . . . . 15 . . . . . . . . . . 2 2 . Rewire 28 | . . . . . . 27 . . . . . . . . . . . . . 1 . Trap . | . . . . . . . . . . . . . . . . . . . . . . Miscellaneous . | . . . . . . . . . . . . . . . . . . . . . . Route ------- -11/Scrapyard -10/Materials -10/Mines -9/Materials (discovered 4 exits: [*Mat x3] / *Min) -9/Mines (discovered 3 exits: [*Mat x2] / [*Zio]) -7/Zion -6/Proximity Caves -6/Factory (discovered 3 exits: *Fac / [*Low] / *Ext) -6/Extension (discovered 2 exits: *Fac / *Cet) -6/Cetus (discovered 2 exits: *Fac / *Arc) -6/Archives -5/Factory (discovered 2 exits: *Upp x2) -5/Upper Caves -5/Upper Caves (discovered 2 exits: *Fac / *War) -5/Warlord -4/Proximity Caves -4/Factory -4/DSF -3/Research (discovered 2 exits: *Tes x2) -3/Testing -2/Research -1/Access History --------- Turn | Location | Event 7 | -11/Scrapyard | Discovered new exit (range 15) 89 | -11/Scrapyard | Entered Materials 163 | -10/Materials | Discovered new exit (range 16) 257 | -10/Materials | Identified exit to Mines 299 | -10/Materials | Entered Mines 318 | -10/Mines | Build established: Mutant 454 | -10/Mines | Discovered new exit (range 8) 469 | -10/Mines | Entered Materials 469 | -9/Materials | Evolved 2 slots: Propulsion x2 952 | -9/Materials | Discovered new exit (range 15) 1329 | -9/Materials | Discovered new exit (range 3) 1546 | -9/Materials | Discovered new exit (range 12) 1796 | -9/Materials | Discovered new exit (range 6) 1804 | -9/Materials | Entered Mines 1936 | -9/Mines | Learned 8 Materials zone layouts 2048 | -9/Mines | Discovered new exit (range 9) 2266 | -9/Mines | Discovered new exit (range 8) 2527 | -9/Mines | A Derelict revealed a hidden shortcut to a safe place 2549 | -9/Mines | Entered Zion 2549 | -7/Zion | Accompanied by 1 ally 2617 | -7/Zion | Found CR-A16's Pointy Stick 2629 | -7/Zion | Discovered new exit (range 14) 2917 | -7/Zion | Learned location of Storage (-7) 2994 | -7/Zion | Learned location of Recycling (-7) 3005 | -7/Zion | Learned Factory terminal intel 3083 | -7/Zion | Received a hallucinogenic algorithm 3107 | -7/Zion | Learned location of Data Miner (-6) 3558 | -7/Zion | Given the Hacking Drone Bay 3824 | -7/Zion | Met Imprinter 3850 | -7/Zion | Imprinted 3853 | -7/Zion | Declared Zion's savior 3935 | -7/Zion | Found Prototype Special Weapon 3937 | -7/Zion | Found Prototype Special Weapon 3940 | -7/Zion | Found Prototype Special Weapon 3943 | -7/Zion | Found Prototype Special Weapon 4335 | -7/Zion | Entered Proximity Caves 4335 | -6/Proximity Caves | Accompanied by 4 allies 4364 | -6/Proximity Caves | Learned Factory security intel 4542 | -6/Proximity Caves | Spotter reported a threat 4558 | -6/Proximity Caves | Spotted B-75 Beast 4590 | -6/Proximity Caves | Allies destroyed B-75 Beast 4595 | -6/Proximity Caves | Spotter reported a threat 4618 | -6/Proximity Caves | Lost 3 allies 4648 | -6/Proximity Caves | Spotter reported a threat 4690 | -6/Proximity Caves | Spotter reported a threat 4692 | -6/Proximity Caves | Attracted the attention of an 0b10 outpost 4698 | -6/Proximity Caves | Identified RU-N14's Throwing Claymores (x4) 4743 | -6/Proximity Caves | Destroyed 7 combat bots 4777 | -6/Proximity Caves | Spotter reported a threat 4827 | -6/Proximity Caves | Spotter reported a threat 4877 | -6/Proximity Caves | Core integrity fell below 50% 4898 | -6/Proximity Caves | Spotter reported a threat 4951 | -6/Proximity Caves | Spotter reported a threat 4998 | -6/Proximity Caves | Discovered new exit (range 8) 5004 | -6/Proximity Caves | Spotter reported a threat 5009 | -6/Proximity Caves | Entered Factory 5009 | -6/Factory | Evolved 6 slots: Power x1, Propulsion x1, Utility x4 5011 | -6/Factory | Loaded intel: 28 terminal locations 5150 | -6/Factory | Discovered new exit (range 20) 5268 | -6/Factory | Discovered new exit (range 20) 5349 | -6/Factory | Build established: Derelict-Mutant 5359 | -6/Factory | Search patrols dispatched 5445 | -6/Factory | Discovered new exit (range 6) 5545 | -6/Factory | Entered Extension 5593 | -6/Extension | Rescued a captive Derelict 5681 | -6/Extension | Rescued a captive Derelict 5681 | -6/Extension | Rescued a captive Derelict 5738 | -6/Extension | Rescued a captive Derelict 5952 | -6/Extension | Zion hero teleported in (1C-UTU) 6029 | -6/Extension | Repaired Imp. Medium Treads 6080 | -6/Extension | Repaired Imp. Medium Treads 6098 | -6/Extension | Rescued a captive Derelict 6126 | -6/Extension | Rescued a captive Derelict 6130 | -6/Extension | Rescued a captive Derelict 6152 | -6/Extension | Spotted B-75 Beast 6226 | -6/Extension | Allies destroyed B-75 Beast 6229 | -6/Extension | Spotted B-75 Beast 6247 | -6/Extension | Allies destroyed B-75 Beast 6386 | -6/Extension | Build established: Scavenger-Mutant 6419 | -6/Extension | Rescued a captive Derelict 6790 | -6/Extension | Build established: Commander-Mutant 6796 | -6/Extension | Rescued A7 6968 | -6/Extension | Discovered new exit (range 10) 6969 | -6/Extension | Discovered new exit (range 6) 7005 | -6/Extension | Entered Cetus 7005 | -6/Cetus | Accompanied by 12 allies (incl. 1C-UTU, A7) 7010 | -6/Cetus | Acquired a Cetus Manufacturing Module code from A7 7025 | -6/Cetus | Spotted Cetus Guard 7025 | -6/Cetus | Spotted Cetus Guard 7026 | -6/Cetus | Spotted Cetus Guard 7031 | -6/Cetus | Spotted Cetus Guard 7050 | -6/Cetus | Allies destroyed Cetus Guard 7058 | -6/Cetus | Allies destroyed Cetus Guard 7062 | -6/Cetus | Allies destroyed Cetus Guard 7067 | -6/Cetus | Allies destroyed Cetus Guard 7157 | -6/Cetus | Started Cetus Manufacturing Module 7171 | -6/Cetus | Identified exit to Archives 7182 | -6/Cetus | Manufactured an Enhanced Grunt 7207 | -6/Cetus | Manufactured an Enhanced Grunt 7208 | -6/Cetus | Spotted Cetus Guard 7208 | -6/Cetus | Spotted Cetus Guard 7209 | -6/Cetus | Spotted Cetus Guard 7209 | -6/Cetus | Spotted Cetus Guard 7215 | -6/Cetus | Discovered new exit (range 19) 7222 | -6/Cetus | Allies destroyed Cetus Guard 7232 | -6/Cetus | Manufactured an Enhanced Grunt 7237 | -6/Cetus | Allies destroyed Cetus Guard 7241 | -6/Cetus | Destroyed Cetus Guard 7246 | -6/Cetus | Destroyed Cetus Guard 7257 | -6/Cetus | Manufactured an Enhanced Grunt 7261 | -6/Cetus | Scared off Revision 17 7274 | -6/Cetus | Lost 9 allies 7282 | -6/Cetus | Manufactured an Enhanced Grunt 7349 | -6/Cetus | Extracted ID and sensor layout for unrecognized location from A7's data core 7354 | -6/Cetus | Found Med. Regenerative Plating 7394 | -6/Cetus | Build established: Scavenger-Mutant 7437 | -6/Cetus | Entered Archives 7437 | -6/Archives | Accompanied by 6 allies 7470 | -6/Archives | Identified exit to Factory 7527 | -6/Archives | System corruption reached 10% 7546 | -6/Archives | System corruption reached 30% 7609 | -6/Archives | Entered Factory 7609 | -5/Factory | Accompanied by 4 allies 7609 | -5/Factory | Evolved 2 slots: Propulsion x1, Utility x1 7665 | -5/Factory | Retrieved Zion intel report: Branch Access 7665 | -5/Factory | Identified exit to Upper Caves 7694 | -5/Factory | Retrieved Zion intel report: Prototype Stockpiles 7695 | -5/Factory | Zion Recon squad teleported in 8058 | -5/Factory | Retrieved Zion intel report: Component Schematics 8134 | -5/Factory | Entered Upper Caves 8134 | -5/Upper Caves | Accompanied by 4 allies 8302 | -5/Upper Caves | Encountered a Warlord checkpoint 8389 | -5/Upper Caves | Attacked by a delusional Derelict stockpiling parts 8496 | -5/Upper Caves | Discovered new exit (range 12) 8518 | -5/Upper Caves | Entered another Upper Caves area 8518 | -5/Upper Caves | Accompanied by 4 allies 8749 | -5/Upper Caves | Discovered new exit (range 6) 8947 | -5/Upper Caves | Attracted the attention of an 0b10 checkpoint 9097 | -5/Upper Caves | Discovered new exit (range 14) 9151 | -5/Upper Caves | Entered Warlord 9151 | -5/Warlord | Accompanied by 6 allies 9196 | -5/Warlord | Discovered new exit (range 14) 9614 | -5/Warlord | Visited the Vortex Lab 9626 | -5/Warlord | Warlord's base attacked by MAIN.C 9633 | -5/Warlord | Found Prototype Energy Gun 9634 | -5/Warlord | Identified Vortex Rifle 9637 | -5/Warlord | Found Vortex Rifle 9644 | -5/Warlord | Found Prototype Energy Gun 9645 | -5/Warlord | Identified Vortex Rail 9648 | -5/Warlord | Found Vortex Rail 9658 | -5/Warlord | Found Prototype Launcher 9827 | -5/Warlord | Learned Armory emergency access door positions 9827 | -5/Warlord | Learned Research emergency access door positions 9827 | -5/Warlord | Learned 4 Armory zone layouts 9827 | -5/Warlord | Learned 4 Access zone layouts 9827 | -5/Warlord | Learned 4 Testing zone layouts 9827 | -5/Warlord | Learned 4 Command zone layouts 9830 | -5/Warlord | Learned Factory repair station intel 9830 | -5/Warlord | Learned Armory fabricator intel 9830 | -5/Warlord | Learned Research repair station intel 9830 | -5/Warlord | Learned Research garrison access intel 9867 | -5/Warlord | Rebuked by Warlord 9880 | -5/Warlord | Found Prototype Special Weapon 9881 | -5/Warlord | Identified RU-N14's Throwing Claymores v3 9886 | -5/Warlord | Found RU-N14's Throwing Claymores v3 9889 | -5/Warlord | Found RU-N14's Throwing Claymores v3 9891 | -5/Warlord | Found RU-N14's Throwing Claymores v3 9894 | -5/Warlord | Found RU-N14's Throwing Claymores v3 9897 | -5/Warlord | Found RU-N14's Throwing Claymores v3 9976 | -5/Warlord | Warlord forces counterattacked 10060 | -5/Warlord | Opened side exit 10115 | -5/Warlord | Spotted Executioner 10119 | -5/Warlord | Destroyed Executioner 10120 | -5/Warlord | Attacked by Warlord forces 10126 | -5/Warlord | Destroyed Executioner 10126 | -5/Warlord | Spotted Executioner 10150 | -5/Warlord | Allies destroyed Executioner 10152 | -5/Warlord | Destroyed 10 combat bots 10226 | -5/Warlord | Spotted Executioner 10238 | -5/Warlord | Allies destroyed Executioner 10253 | -5/Warlord | Lost 3 allies 10256 | -5/Warlord | Destroyed 15 combat bots 10301 | -5/Warlord | Warlord base infiltrated, sounded retreat 10326 | -5/Warlord | Spotted Executioner 10326 | -5/Warlord | Spotted Executioner 10360 | -5/Warlord | Destroyed 14 combat bots 10394 | -5/Warlord | Destroyed Executioner 10426 | -5/Warlord | Spotted Executioner 10443 | -5/Warlord | Identified Vortex Catalyst Activator 10453 | -5/Warlord | Entered Proximity Caves 10458 | -4/Proximity Caves | Core integrity fell below 50% 10489 | -4/Proximity Caves | Destroyed 15 combat bots 10529 | -4/Proximity Caves | Lost 9 parts (2p3n2u2w) 10715 | -4/Proximity Caves | Build established: Mutant 11049 | -4/Proximity Caves | Discovered new exit (range 107) 11347 | -4/Proximity Caves | Learned Research stockpile data 11348 | -4/Proximity Caves | Learned Research security intel 11351 | -4/Proximity Caves | Learned 4 Research zone layouts 11362 | -4/Proximity Caves | Entered Factory 11362 | -4/Factory | Evolved 2 slots: Utility x2 11363 | -4/Factory | Loaded intel: 6 repair station locations 11395 | -4/Factory | Identified exit to DSF 11403 | -4/Factory | Zion Resource Resupply teleported in 11418 | -4/Factory | Entered DSF 11418 | -4/DSF | Accompanied by 1 ally 11438 | -4/DSF | Additional patrols routed to DSF 11450 | -4/DSF | Discovered new exit (range 16) 11478 | -4/DSF | Entered Research 11478 | -3/Research | Evolved 2 slots: Utility x1, Weapon x1 11483 | -3/Research | Loaded intel: 4 repair station locations 11484 | -3/Research | Loaded intel: 4 garrison access locations 11716 | -3/Research | Zion Heavy squad teleported in 11826 | -3/Research | Discovered new exit (range 19) 11830 | -3/Research | Retrieved Zion intel report: Branch Access 11830 | -3/Research | Identified exit to Testing 11831 | -3/Research | Zion Heavy squad teleported in 11874 | -3/Research | Spotted B-86 Titan 11915 | -3/Research | Entered Testing 11915 | -3/Testing | Accompanied by 3 allies 11964 | -3/Testing | Scanned by Researcher 11997 | -3/Testing | Found Prototype Energy Cannon 11997 | -3/Testing | Identified Cld. Nova Cannon 12018 | -3/Testing | Found Prototype Launcher 12031 | -3/Testing | Identified Mni. Smartbomb Launcher 12057 | -3/Testing | Retrieved Zion intel report: Emergency Access 12137 | -3/Testing | Build established: Scavenger-Mutant 12151 | -3/Testing | Found Prototype Launcher 12151 | -3/Testing | Identified Hellfire Missile Launcher 12241 | -3/Testing | Spotted Alpha 7 12253 | -3/Testing | Found Zio. Weapon Casing 12277 | -3/Testing | Lost 3 allies 12286 | -3/Testing | Destroyed Alpha 7 12337 | -3/Testing | Found Prototype Device 12492 | -3/Testing | Retrieved Zion intel report: Unaware Analyses 12678 | -3/Testing | Crushed by falling debris 12706 | -3/Testing | Crushed by falling debris 12706 | -3/Testing | System corruption reached 10% 12736 | -3/Testing | Crushed by falling debris 12740 | -3/Testing | Crushed by falling debris 12771 | -3/Testing | Lost 6 parts (5u1w) 12821 | -3/Testing | Found Prototype Hackware 12822 | -3/Testing | Identified System Mapper 12823 | -3/Testing | Identified Exp. Shield Generator 12861 | -3/Testing | Found Prototype Leg 12862 | -3/Testing | Identified Myomer Exoskeleton 12919 | -3/Testing | Discovered new exit (range 5) 12940 | -3/Testing | Found Prototype Energy Cannon 12944 | -3/Testing | Identified Potential Cannon 12946 | -3/Testing | Found Potential Cannon 12985 | -3/Testing | Entered Research 12985 | -2/Research | Evolved 2 slots: Utility x1, Weapon x1 13203 | -2/Research | Lost 8 parts (2p1n5u) 13209 | -2/Research | Zion Heavy squad teleported in 13258 | -2/Research | Garrison activated, responded to threat 13461 | -2/Research | Zion Heavy squad teleported in 13485 | -2/Research | First assault squad dispatched 13508 | -2/Research | Cargo convoy interrupted 13544 | -2/Research | Found Zio. Weapon Casing 13668 | -2/Research | Crushed by falling debris 13689 | -2/Research | Crushed by falling debris 13720 | -2/Research | Lost 4 parts (2p2u) 13729 | -2/Research | Zion Fire squad teleported in 13786 | -2/Research | Found Prototype Launcher 13787 | -2/Research | Identified Enh. Gamma Bomb Array 13790 | -2/Research | Found Hvy. Reflective Plating 14100 | -2/Research | Lost 3 allies 14107 | -2/Research | Lost 3 parts (3u) 14289 | -2/Research | Found Exp. Actuator Array 14294 | -2/Research | Terminal network hard line cut 14313 | -2/Research | System corruption reached 10% 14497 | -2/Research | Crushed by falling debris 14523 | -2/Research | Core integrity fell below 50% 14540 | -2/Research | Destroyed 9 combat bots 14561 | -2/Research | Lost 6 parts (1p2n3u) 14564 | -2/Research | High security lockdown imminent 14589 | -2/Research | Discovered new exit (range 15) 14595 | -2/Research | Destroyed 7 combat bots 14601 | -2/Research | Core integrity fell below 20% 14612 | -2/Research | Entered Access 14612 | -1/Access | Evolved 2 slots: Propulsion x2 14619 | -1/Access | Lost 11 parts (1p4n3u3w) 14648 | -1/Access | Zion Heavy squad teleported in 14784 | -1/Access | Zion Hacker squad teleported in 14784 | -1/Access | Build established: Mutant 14862 | -1/Access | First assault squad dispatched 14903 | -1/Access | Zion Heavy squad teleported in 14934 | -1/Access | Garrison activated, responded to threat 14969 | -1/Access | Lost 5 allies 15027 | -1/Access | Core integrity fell below 50% 15029 | -1/Access | Crushed by falling debris 15040 | -1/Access | Core integrity fell below 20% 15043 | -1/Access | Destroyed by G-73 Enforcer with Phase Gun Last Messages --------------- 15036_ Penetrated by Slug. 15036_ Slug penetrates Wall. 15037_ Wall collapses. 15038_ Slug penetrates Wall. 15039_ Centrium Wheel destroyed. 15039_ Knocked back. 15039_ Slug penetrates K-01 Serf. 15039_ Penetrated by Slug. 15039_ Slug penetrates Wall. 15040_ U-05 Engineer builds a Wall. 15040_ Penetrated by Slug. 15040_ Exp. Coolant Injector destroyed. 15042_ C-30 ARC bursts open, deploying its payload. 15042_ G-73 Enforcer unfolds itself. 15042_ B-74 Champion unfolds itself. 15042_ G-73 Enforcer unfolds itself. 15042_ E-15 Imp unfolds itself. 15042_ CR-A16's Pointy Stick destroyed. 15042_ Slug penetrates Wall. Map ----- +----------------------------------------------------+ | ????????????????????????#####????????????????????? | | ????????????????######### ???????????????? ???? | | ????????????????? ??????????? ??? | | ??????????????????? ########## /###???? | | ?????????????????????? # * %=#???? | | ????????????????????????# # %! ! #???? | | ?????????????######?????# + "" = =% #???? | | ?????????????# ####### # """ [ % #???? | | ?????????????# != # T = ##??? | | ?????????????# !%| + """ ! "#### | | ?????????????# !%########## "" =%% % " ^ | | ?############## ########### =!! # | | ?# # %# ## ! %!%* " | | ?# ! # # ###########=[ + | | ?# ] + + #?????????# ##### | | ?# # # " #?????????# #???? | | ?# " # """ #?????????# #???? | | ?############"# +? """ #?????????# #???? | | ?###########"## #? " #?????????# ##### | | ?# # #?? #?????????#"" + | | ?# # #?? #????????## #???? | | ?# "" # #???## ###???????##" ! #???? | | ?# "" #uh#############################???? | | ?# "" hh# ##????????????? | | ?# p; #?????????????? | | ?# " #p% @ #?????????????? | | ?# "" # #????# ????? | | ?# "" # #????# ????? | | ?#! /H e bg #????# ????? | | ?# h g% ##???# ????? | | ?# # ###########b ##############? | | ?####### "##### #?????????# # """"" #? | | ???????###???# #????????# # "" F" #? | | ???????????? #????????# * # "" "" #? | | ??????????? #????????# !% # #? | | ??????????#### #????????# != # +? | | ?????????????##+###?###????# # #? | | ???????????????????? #????# # """"" #? | | ???????????????????? #????# !!= # """""""" #? | | ???????????????????? #????# !%!= # """""""" #? | | #####??????????????? #????# + """"" #? | | #??????????????? #????# # ?? | | #??????????????? #???## # #? | | #??????????????? #???#" "#############? | | #??????????????? #???## | | #??????????????? #????# [ ###????? | | "" #??????????????? #????# #??????? | | "" #??????????????? #????# #??????? | | #??????????????? #?###" =^ " #????? | | ##????###############"#% " #???? | +----------------------------------------------------+ Best States ------------- Heat Dissipation 87 Coolant Potential 240 Energy Generation 55 Energy Capacity 1480 Matter Stores 300 Matter Capacity 300 Sight Range 20 Terrain Scan Density 10 Corruption Block 14 Armor Coverage 1050 Resistance: KI 25 Resistance: TH 25 Resistance: EM 25 Weapon Shielding 100 Phase Shifting 10 Evasion (%) 80 Targeting Accuracy 8 Melee Accuracy 16 Target Analysis 8 Recoil Reduction 6 Offensive Hacking 22 Item Schematics ----------------- Drone Bay | -7/Zion | Archive Jamming Amplifier | -7/Zion | Archive Imp. Titanium Leg | -7/Zion | Archive Kinecellerator | -7/Zion | Archive Cloaking Device | -7/Zion | Archive Remote Datajack | -7/Zion | Archive Enh. Optical Array | -7/Zion | Archive Gatling Laser | -7/Zion | Archive Thermal Shield | -7/Zion | Archive Imp. Heavy Armor Plating | -7/Zion | Archive Med. Treads | -7/Zion | Archive Hyp. Gauss Cannon | -7/Zion | Archive Adv. Drone Bay | -7/Zion | Archive Launcher Guidance Computer | -7/Zion | Archive Fusion Compressor | -5/Factory | Z-intel Hvy. Machine Gun | -5/Factory | Z-intel Cargo Storage Unit | -5/Factory | Z-intel Variable Charge Gun | -5/Factory | Z-intel Imp. Remote Datajack | -5/Factory | Z-intel Imp. Targeting Computer | -5/Factory | Z-intel Linear Gravjet | -5/Factory | Z-intel Com. Battery | -5/Factory | Z-intel Adv. System Shield | -5/Factory | Z-intel Adv. Hacking Suite | -5/Factory | Z-intel Imp. System Shield | -5/Factory | Z-intel Hvy. Phase Cannon | -5/Factory | Z-intel Adv. Melee Analysis Suite | -5/Factory | Z-intel Diametric Drive | -3/Testing | Archive Thunder Leg | -3/Testing | Scanalyzed Coolant Network | -3/Testing | Archive Tesla Bomb Launcher | -3/Testing | Archive Centrium Heavy Treads | -3/Testing | Archive Exp. Optical Array | -3/Testing | Archive Com. Mass Driver | -3/Testing | Archive Robot Schematics ------------------ A-02 Transporter | -7/Zion | Archive M-28 Smith | -7/Zion | Archive O-24 Administrator | -7/Zion | Archive B-74 Champion | -3/Testing | Archive G-67 Veteran | -3/Testing | Archive R-10 Processor | -3/Testing | Archive H-77 Assassin | -3/Testing | Archive A-15 Conveyor | -3/Testing | Archive Fabricated ------------ Nothing Repaired ---------- Imp. Medium Treads | 16% | -6/Extension Imp. Medium Treads | 17% | -6/Extension Alien Tech Used ----------------- None Achievements -------------- Collateral Damage Decoder Ring Friend Of Zion Heroic Deeds Max Potential Overkill Challenges ------------ None Game ------ Seed ClaymoresGunDevice Manual? 0 Play Time 02:54:28 Cumulative 123.8 hours Start 2025.08.09 @ 16:21:41 End 2025.08.09 @ 22:39:34 Sessions 6 Manual Loads 0 Difficulty Rogue Special Mode None Game No. 215 Rogue 215 Adventurer 0 Explorer 0 Win Type - Total 2 Types 1/0/1/0/0/0/0/0/0/0 Lore% 71 Gallery% 67 Achievement% 48 Wizard Run 0 Options --------- Layout 1 ASCII 0 Keyboard 0 Movement Mouse Keybinds 0 Fullscreen 1 Font 32/SmallcapsGlow Map View 50x35 Zoom Use 0% Tactical HUD 1 Map Filters NONE Filters NONE Steam 1 RUN: 04633ca0-1867-43c4-8f37-30f53174ffc1